Cogmind - Beta 13 @@@ ROGUE MODE // 2024.04.25 @ 00:02:38 Player: szymekc Result: Destroyed by AG-74349 with Assembled Focal Cannon Performance ------------- Evolutions (4) 2000 Regions Visited (18) 3600 Robots Destroyed (138) 690 Value Destroyed (5059) 5059 Prototype IDs (62) 1240 Alien Tech Used (0) 0 Bonus (3237) 3237 TOTAL SCORE: 15826 Bonus ------- High Alert Combat Kills 44 Follower Combat Kills 266 Entered Garrisons 200 Aligned with FarCom 300 Met Data Miner 300 Met Imprinter 300 Destroyed Z-Imprinter 1000 Triggered Deep Caves Wall 500 Exposed GOLEM Chamber 500 Friendly Fire -173 Cogmind --------- Core Integrity 0/850 Matter 27/300 Energy 88/100 System Corruption 2% Temperature Cool (9) Movement Walking (115) Location -6/Deep Caves Parts ------- > --- POWER (2) -------- Zionite Light DM Reactor > --- PROPULSION (5) --- Zionite Composite Leg I Zionite Composite Leg I Enhanced Flexi-carbon Leg Enhanced Flexi-carbon Leg > --- UTILITY (6) ------ Experimental Heat Sink High-capacity Storage Unit Advanced Hardlight Generator > --- WEAPON (2) ------- Proton Missile Launcher Mini Grenade Launcher > --- INVENTORY (20) --- Zionite Composite Leg I Zionite Biocell (600) Zionite Biocell (600) High-capacity Matter Pod (200) Machine Analyzer Advanced Sensor Array 0b10 Decoder Chip [Looter] 0b10 Decoder Chip [Scout] Advanced Particle Charger Zionite Weapon Casing Zionite Light Carapace Makeshift Hacking Suite Makeshift Hacking Suite Improved Hacking Suite Hacking Drone Bay (1/1) Neutron Cannon Neutron Cannon Enhanced Gauss Cannon Improved Plasma Cutter Phasing Sabre Peak State ------------ > --- POWER ------------ Zionite Light DM Reactor Zionite Light DM Reactor > --- PROPULSION ------- Enhanced Flexi-carbon Leg Enhanced Flexi-carbon Leg Enhanced Flexi-carbon Leg Enhanced Flexi-carbon Leg Enhanced Flexi-carbon Leg > --- UTILITY ---------- Experimental Heat Sink Huge Storage Unit Experimental Reaction Control System Zionite Weapon Casing Layered Medium Armor Plating Advanced Hardlight Generator > --- WEAPON ----------- Neutron Cannon Phasing Sabre > --- INVENTORY -------- Flexi-carbon Leg Enhanced Flexi-carbon Leg Experimental Heat Sink High-capacity Storage Unit Zionite Biocell Zionite Biocell High-capacity Matter Pod Machine Analyzer Advanced Sensor Array 0b10 Decoder Chip [Looter] 0b10 Decoder Chip [Scout] Advanced Particle Charger Layered Medium Armor Plating Advanced Hardlight Generator Makeshift Hacking Suite Makeshift Hacking Suite Improved Hacking Suite Advanced Drone Bay Hacking Drone Bay Neutron Cannon Enhanced Gauss Cannon Proton Missile Launcher Mini Grenade Launcher Improved Plasma Cutter [Rating: 112] Favorites ----------- Power Improved Deuterium Engine Engine Improved Deuterium Engine Power Core Light Nuclear Core Reactor Antimatter Reactor Propulsion Enhanced Flexi-carbon Leg Treads Light Treads Leg Enhanced Flexi-carbon Leg Wheel Armored Wheel Hover Unit Zionite Glidesys I Flight Unit Improved VTOL Module Utility Huge Storage Unit Device Cooling System Storage Huge Storage Unit Processor Advanced Melee Analysis Suite Hackware Hacking Suite Protection Layered Heavy Armor Plating Weapon Lance Energy Gun Improved EM Shotgun Energy Cannon Neutron Cannon Ballistic Gun Assault Rifle Ballistic Cannon Enhanced Gauss Cannon Launcher Mini Grenade Launcher Impact Weapon Heavy Hammer Slashing Weapon Phasing Sabre Piercing Weapon Lance Build | -11 -10 -10 -9 -9 -9 -8 -8 -8 -7 -7 -7 -7 -6 -6 -6 -6 -6 -6 ------- Run | Yrd Mat Min Mat Min Exi Min Mat Gar Fac Low Low Dat Pro Fac Low Low Zio Dee Slots Evolved 8 | . . . 2 . . . 2 . 2 . . . . 2 . . . . Power 1 | . . . . . . . . . 1 . . . . . . . . . Propulsion 3 | . . . 1 . . . 1 . . . . . . 1 . . . . Utility 4 | . . . 1 . . . 1 . 1 . . . . 1 . . . . Weapon . | . . . . . . . . . . . . . . . . . . . Parts Attached 246 | . 7 1 6 15 . 3 19 19 21 8 12 16 25 16 2 7 10 59 Power 23 | . 1 1 . 3 . . 2 . 2 1 1 2 2 . . . . 8 Engine 10 | . 1 . . 3 . . 1 . 2 1 1 1 . . . . . . Core 2 | . . 1 . . . . 1 . . . . . . . . . . . Reactor 11 | . . . . . . . . . . . . 1 2 . . . . 8 Propulsion 56 | . 2 . 2 4 . . 7 5 10 . 1 2 6 4 . . . 13 Treads 6 | . 2 . . 1 . . . 2 1 . . . . . . . . . Leg 37 | . . . . 2 . . 6 3 6 . . 1 5 3 . . . 11 Wheel 8 | . . . 2 1 . . . . 2 . 1 1 1 . . . . . Hover 2 | . . . . . . . . . . . . . . . . . . 2 Flight 3 | . . . . . . . 1 . 1 . . . . 1 . . . . Utility 90 | . 2 . 3 3 . . 4 5 4 5 4 5 8 9 2 5 5 26 Device 43 | . 1 . 1 1 . . 2 . 1 4 4 3 6 7 1 4 2 6 Storage 8 | . 1 . 1 1 . . . 1 . . . . 1 . . . . 3 Processor 3 | . . . . . . . . . . . . . . 1 1 . 1 . Hackware 2 | . . . . . . . . 1 . . . . . 1 . . . . Protection 34 | . . . 1 1 . . 2 3 3 1 . 2 1 . . 1 2 17 Artifact . | . . . . . . . . . . . . . . . . . . . Weapon 77 | . 2 . 1 5 . 3 6 9 5 2 6 7 9 3 . 2 5 12 Energy Gun 8 | . . . . . . . 3 3 . . . . . . . . . 2 Energy Cannon 21 | . . . . 1 . . . 1 2 . 3 5 4 1 . . 1 3 Ballistic Gun 1 | . 1 . . . . . . . . . . . . . . . . . Ballistic Cannon 4 | . 1 . . . . . . 1 1 . . . . . . . 1 . Launcher 25 | . . . . 3 . 3 1 2 . 1 1 . 4 1 . 2 1 6 Special Weapon . | . . . . . . . . . . . . . . . . . . . Impact Weapon 6 | . . . 1 1 . . 2 1 . . . . . . . . 1 . Slashing Weapon 2 | . . . . . . . . . . . . . . . . . 1 1 Piercing Weapon 10 | . . . . . . . . 1 2 1 2 2 1 1 . . . . Special Melee Weapon . | . . . . . . . . . . . . . . . . . . . Unidentified Prototypes 22 | . . . . . . . 2 . 1 . . 3 1 2 . . 1 12 Corrupted Parts 8 | . . . . . . . . . . . . . 7 . . . . 1 System Corruption 28 | . . . . . . . . . . . . . 26 . . . . 2 Parts Lost 51 | . 1 . . 10 . . 3 3 . 1 2 4 1 1 . . . 25 Power 13 | . 1 . . 2 . . 2 . . 1 1 . . . . . . 6 Propulsion 12 | . . . . 4 . . . 2 . . . . 1 . . . . 5 Utility 21 | . . . . 2 . . 1 . . . 1 2 . 1 . . . 14 Weapon 5 | . . . . 2 . . . 1 . . . 2 . . . . . . Highest Loss Streak 8 | . 1 . . 7 . . 2 3 . 1 2 2 1 1 . . . 8 To Critical Strikes . | . . . . . . . . . . . . . . . . . . . Average Slot Usage (%) 90 | . 96 100 97 92 100 100 95 98 95 83 83 80 78 89 86 86 85 92 Engine 8 | . 14 8 . 9 11 11 2 9 14 14 14 10 7 6 6 6 6 . Reactor 2 | . . . . . . . . . . . . 3 6 6 6 5 . 10 Treads 4 | . 27 28 12 1 . . . 9 3 7 5 . . . . . . . Leg 18 | . . . . 19 22 22 33 24 17 . . . 1 33 33 33 33 31 Wheel 5 | . . . 20 9 11 11 1 . 5 15 16 23 17 . . . . . Device 11 | . 10 14 14 10 11 11 16 3 4 14 14 14 14 11 13 11 7 13 Storage 8 | . 14 14 11 11 11 11 9 9 7 7 7 7 7 6 6 6 6 6 Processor 2 | . . . . . . . . . . . . . . 6 6 6 8 3 Protection 8 | . . . 6 7 11 11 6 18 17 7 7 6 6 6 6 6 9 12 Energy Cannon 2 | . . . . . . . . 4 7 . 2 8 10 2 . . . 1 Ballistic Gun 1 | . 16 14 10 . . . . . . . . . . . . . . . Ballistic Cannon 3 | . 10 14 11 . . . . 2 2 7 6 . . . . . 1 1 Launcher 2 | . . . . 9 11 11 2 3 . 2 . . 3 . . 2 2 4 Impact Weapon 1 | . . . . 10 11 11 4 . . . . . . . . . 1 . Piercing Weapon 2 | . . . . . . . . 2 4 4 4 4 . 5 6 6 2 . Naked Turns . | . . . . . . . . . . . . . . . . . . . Heaviest Build 150 | 11 31 31 96 96 36 36 42 110 125 140 140 150 150 147 138 139 131 141 Greatest Support 140 | 20 40 40 40 26 10 10 54 54 59 40 52 52 112 140 140 140 140 140 Greatest Overweight (x) 9 | . . . 3 9 3 3 3 2 4 3 3 3 3 1 . . . 1 Average Overweight (x) 1 | . . . 2 2 3 3 . . 2 2 2 2 2 . . . . . Largest Inventory Capacity 25 | 8 15 15 25 25 15 15 15 25 25 25 25 25 25 25 25 25 25 25 Average Capacity 22 | 8 14 15 24 16 15 15 15 20 25 25 25 25 25 25 25 25 25 24 Most Carried 25 | 6 14 15 24 23 15 15 15 25 25 25 25 25 25 25 25 25 25 25 Average Carried 21 | 6 9 14 16 14 14 15 14 19 24 24 24 23 24 24 23 24 24 23 Final Capacity 25 | 8 15 15 25 15 15 15 15 25 25 25 25 25 25 25 25 25 25 20 Final Carried 25 | 6 14 15 23 15 15 15 15 25 24 25 25 25 21 25 24 25 25 20 Class Distribution -------------------- 50% | Scavenger-Mutant 47% | Mutant Dominant Class ---------------- Mutant | -10/Materials Mutant | -10/Mines Mutant | -9/Materials Scavenger-Mutant | -9/Mines Scavenger-Mutant | -9/Exiles Scavenger-Mutant | -8/Mines Mutant | -8/Materials Scavenger-Mutant | -8/Garrison Mutant | -7/Factory Mutant | -7/Lower Caves Mutant | -7/Lower Caves Mutant | -7/Data Miner Mutant | -6/Proximity Caves Scavenger-Mutant | -6/Factory Scavenger-Mutant | -6/Lower Caves Scavenger-Mutant | -6/Lower Caves Scavenger-Mutant | -6/Zion Scavenger-Mutant | -6/Deep Caves Resources | -11 -10 -10 -9 -9 -9 -8 -8 -8 -7 -7 -7 -7 -6 -6 -6 -6 -6 -6 ----------- Run | Yrd Mat Min Mat Min Exi Min Mat Gar Fac Low Low Dat Pro Fac Low Low Zio Dee Matter Collected 5477 | 200 313 858 14 393 . 24 211 425 440 378 398 180 177 254 199 185 72 756 Remotely . | . . . . . . . . . . . . . . . . . . . Salvage Created 6701 | . 303 118 11 471 . 11 748 369 440 282 432 403 164 653 171 232 . 1893 Parts 272 | . 26 16 4 17 . . 41 15 17 12 15 21 19 30 6 5 . 28 Haulers Intercepted 5 | . 2 . . . . . 2 . 1 . . . . . . . . . Recyclers Shooed 2 | . . 1 . 1 . . . . . . . . . . . . . . Parts Field Recycled . | . . . . . . . . . . . . . . . . . . . Retrieved Matter . | . . . . . . . . . . . . . . . . . . . Parts Self-Destructed 48 | . . . . . . . . . . 11 10 . 18 . 5 4 . . Prevented . | . . . . . . . . . . . . . . . . . . . Kills | -11 -10 -10 -9 -9 -9 -8 -8 -8 -7 -7 -7 -7 -6 -6 -6 -6 -6 -6 ------- Run | Yrd Mat Min Mat Min Exi Min Mat Gar Fac Low Low Dat Pro Fac Low Low Zio Dee Combat Hostiles Destroyed 204 | . 9 7 . 16 . . 8 15 6 12 10 4 10 8 . 8 . 91 Melee 17 | . . . . 2 . . 1 . 3 1 . 2 . 5 . 2 . 1 Guns 19 | . 5 6 . . . . 6 2 . . . . . . . . . . Cannons 23 | . 4 1 . 1 . . . . 2 5 7 . 1 . . . . 2 AOE 137 | . . . . 12 . . . 13 . 6 3 . 9 3 . 6 . 85 Classes Destroyed 21 | . 4 1 . 4 . . 3 1 1 1 1 . 1 . 1 1 . 2 Worker 8 | . . . . 4 . . 1 . 1 . . . . 2 . . . . Tunneler 3 | . . 1 . 1 . 1 . . . . . . . . . . . . Hauler 5 | . 2 . . . . . 2 . 1 . . . . . . . . . Recycler 6 | . . . . 2 . . 1 . 1 . . . . 2 . . . . Drone 2 | . . . . . . . . . . . . . 2 . . . . . Watcher 7 | . 2 . 1 . . . 4 . . . . . . . . . . . Swarmer 33 | . 6 5 . 4 . . . . . 4 3 . 7 3 . 1 . . Grunt 39 | . 3 2 . . . . 3 10 4 5 3 . . 4 . 5 . . Brawler 1 | . . . . . . . 1 . . . . . . . . . . . Duelist 4 | . . . . . . . . 2 . 2 . . . . . . . . Sentry 7 | . . . . . . . 3 1 . 1 . . 1 . . 1 . . Demolisher 1 | . . . . 1 . . . . . . . . . . . . . . Hunter 3 | . . . . . . . 1 2 . . . . . . . . . . Programmer 3 | . . . . . . . . . 2 . . . . 1 . . . . Enhanced Grunt 4 | . . . . . . . . . . . . 4 . . . . . . Z-Light 4 | . . . . . . . . . . . . . . . . . . 4 Decomposer 2 | . . . . . . . . . . . 1 . . . 1 . . . Samaritan 2 | . . . . . . . . . . . . . . . 2 . . . Tinkerer 1 | . . . . . . . . . . 1 . . . . . . . . Thief 1 | . . . . . . . . . . . . . . . . 1 . . Assembled 95 | . . . . 11 . . . . . . . . . . . . . 84 Golem 2 | . . . . . . . . . . . . . . . . . . 2 Savage 2 | . . . . . . . . . . . 2 . . . . . . . Butcher 1 | . . . . . . . . . . . 1 . . . . . . . Mutant 1 | . . . . . . . . . . . 1 . . . . . . . Best Kill Streak 51 | . 4 3 1 4 . 1 4 12 3 6 4 3 4 6 . 4 . 51 Combat Bots Only 51 | . 4 3 . 3 . . 3 12 3 6 4 3 4 4 . 4 . 51 Max Kills in Single Turn 10 | . 1 1 1 3 . 1 2 3 1 3 1 1 3 2 1 1 . 10 Gunslinging . | . . . . . . . . . . . . . . . . . . . Exploded 10 | . . . . 2 . . . 3 . 3 1 . 3 2 . 1 . 10 Melee 1 | . . . . 1 . . 1 . 1 1 . 1 . 1 . 1 . 1 Uniques/NPCs Destroyed 1 | . . . . . . . . . . . . . . . . . . 1 Z-Imprinter (-6/Deep Caves) Combat | -11 -10 -10 -9 -9 -9 -8 -8 -8 -7 -7 -7 -7 -6 -6 -6 -6 -6 -6 -------- Run | Yrd Mat Min Mat Min Exi Min Mat Gar Fac Low Low Dat Pro Fac Low Low Zio Dee Hostile Shots Fired 966 | . 42 33 3 58 . . 47 49 47 65 26 39 37 36 . 78 . 406 Missed 306 | . 12 8 1 16 . . 9 13 8 22 8 12 19 9 . 32 . 137 Damage Taken 12255 | . 312 227 31 1240 . 21 586 635 623 647 314 1062 275 543 . 647 . 5092 Core 1546 | . 48 35 . 213 . . 125 66 63 18 . 95 8 32 . 76 . 767 Absorbed by Shields 2149 | . . . . . . . . 120 . 109 . . . . . . . 1920 Redirected to Shielding 607 | . . . . . . . . 38 17 . . . . . . . . 552 Ignored by Resistances 203 | . . . . . . . . . . . . 203 . . . . . . Core Remaining (%) 70 | 100 . 66 . . . 46 . 65 . . . . 73 . . . . . Volleys Fired 337 | . 39 16 2 40 . 1 23 31 17 30 21 14 16 3 . 11 . 73 Largest 2 | . 2 2 2 2 . 1 2 2 2 2 2 2 2 1 . 1 . 2 Hottest 180 | . 55 55 55 95 . 30 90 90 150 87 142 150 180 90 . 30 . 90 Shots Fired 471 | . 78 32 4 48 . 1 40 35 22 31 40 28 16 3 . 13 . 80 Gun 112 | . 49 16 2 . . . 34 11 . . . . . . . . . . Cannon 183 | . 29 16 2 14 . . . . 22 23 36 28 9 1 . . . 3 Launcher 176 | . . . . 34 . 1 6 24 . 8 4 . 7 2 . 13 . 77 Special . | . . . . . . . . . . . . . . . . . . . Kinetic 176 | . 78 32 4 13 . . . . 6 23 20 . . . . . . . Thermal 30 | . . . . 1 . . . . . . 16 . 9 1 . . . 3 Explosive 75 | . . . . . . 1 . 24 . 8 4 . 7 2 . 13 . 16 Electromagnetic 190 | . . . . 34 . . 40 11 16 . . 28 . . . . . 61 Robot Hit Streak 13 | . 5 8 1 3 . . 13 7 8 13 4 10 7 . . 6 . 7 Robot Miss Streak 5 | . 4 1 1 4 . . 5 1 2 3 4 1 . 1 . . . 4 Penetration Max . | . . . . . . . . . . . . . . . . . . . Secondary Targets 1 | . 1 . . . . . . . . . . . . . . . . . Max Gunslinging Chain 1 | . 1 . . . . . . . . . . . . . . . . . Shots Hit Robots 300 | . 46 21 1 21 . 1 34 12 23 25 19 39 1 22 4 14 . 17 Core Hits 492 | . 19 9 1 36 . . 24 42 7 26 15 17 12 15 3 21 . 245 Critical Kills . | . . . . . . . . . . . . . . . . . . . Critical Parts Destroyed 3 | . 1 . . 1 . . 1 . . . . . . . . . . . Critical Strikes 16 | . 1 . . 1 . . 1 . 1 3 . 5 . 3 . 1 . . Destroy 1 | . 1 . . . . . . . . . . . . . . . . . Blast 3 | . . . . . . . . . 1 2 . . . . . . . . Corrupt 1 | . . . . . . . . . . . . 1 . . . . . . Smash 2 | . . . . 1 . . 1 . . . . . . . . . . . Impale 9 | . . . . . . . . . . 1 . 4 . 3 . 1 . . Melee Attacks 204 | . . . 3 12 . 3 16 10 25 6 10 34 . 51 5 14 2 13 Impact 40 | . . . 3 12 . 3 16 4 . . . . . . . . 2 . Slashing 13 | . . . . . . . . . . . . . . . . . . 13 Piercing 151 | . . . . . . . . 6 25 6 10 34 . 51 5 14 . . Sneak Attacks 23 | . . . . 3 . 1 3 . 2 1 1 4 . 5 3 . . . Combat Hostiles 4 | . . . . 1 . . . . . . . 3 . . . . . . Follow-up Attacks . | . . . . . . . . . . . . . . . . . . . Damage Inflicted 22172 | . 665 341 17 1383 . 58 1085 2448 819 1768 893 1001 489 1324 280 1354 . 8247 Guns 1125 | . 305 161 . . . . 502 157 . . . . . . . . . . Cannons 2670 | . 346 158 17 89 . . . . 390 623 539 348 46 . . . . 114 Explosions 14295 | . . . . 905 . . 176 2291 . 891 226 . 443 289 . 1078 . 7996 Melee 4025 | . . . . 389 . 58 407 . 408 254 128 653 . 1035 280 276 . 137 Ramming 57 | . 14 22 . . . . . . 21 . . . . . . . . . Kinetic 2156 | . 651 319 17 89 . . . . 130 623 327 . . . . . . . Thermal 589 | . . . . 184 . . . 33 . . 212 . 46 . . . . 114 Explosive 7734 | . . . . . . . . 2258 . 891 226 . 443 289 . 1078 . 2549 Electromagnetic 7611 | . . . . 721 . . 678 157 260 . . 348 . . . . . 5447 Impact 854 | . . . . 389 . 58 407 . . . . . . . . . . . Slashing 137 | . . . . . . . . . . . . . . . . . . 137 Piercing 3034 | . . . . . . . . . 408 254 128 653 . 1035 280 276 . . Highest Corruption 35 | . . . . 2 2 2 1 1 4 4 9 9 35 7 7 7 7 2 Average Corruption 5 | . . . . 1 2 2 1 1 3 4 4 9 9 6 7 7 7 2 Corruption Purged . | . . . . . . . . . . . . . . . . . . . Corruption Blocked . | . . . . . . . . . . . . . . . . . . . Effects 207 | . . . . 9 2 2 . 5 3 29 40 18 22 29 12 32 3 1 Message Errors 55 | . . . . 3 . . . 1 1 7 12 6 6 10 2 7 . . Matter Fused 50 | . . . . 1 . . . . 1 9 10 7 5 8 2 5 1 1 Heat Flow Errors 34 | . . . . 1 . 1 . 2 1 3 5 1 5 2 6 6 1 . Energy Discharges 22 | . . . . 1 . . . 1 . 7 3 1 1 1 1 6 . . Parts Fused 1 | . . . . 1 . . . . . . . . . . . . . . Data Loss (minor) 26 | . . . . 2 1 1 . . . 2 4 2 3 6 . 5 . . Data Loss (major) 5 | . . . . . . . . 1 . 1 1 . 1 1 . . . . Misfires 5 | . . . . . . . . . . . 3 . . . . 2 . . Alerts 8 | . . . . . 1 . . . . . 2 1 . 1 1 1 1 . Weapon Failures 1 | . . . . . . . . . . . . . 1 . . . . . Overload Shots . | . . . . . . . . . . . . . . . . . . . Overflow Damage 1197 | . . 1 . 107 . 18 205 61 63 170 59 . 33 119 42 23 . 296 Projectiles 49 | . . . . . . . . . . 29 . . . . . . . 20 Explosions 483 | . . . . 50 . . . 61 . 11 13 . 33 35 . 23 . 257 Melee 665 | . . 1 . 57 . 18 205 . 63 130 46 . . 84 42 . . 19 Knockbacks 21 | . 2 4 . 2 . . 1 . . 10 2 . . . . . . . Impact 2 | . . . . 1 . . 1 . . . . . . . . . . . Kinetic 19 | . 2 4 . 1 . . . . . 10 2 . . . . . . . Secondary . | . . . . . . . . . . . . . . . . . . . Self-Inflicted Damage 1149 | . . . . 253 . 23 10 171 10 61 . . 63 88 . 185 . 285 Shots 46 | . . . . 16 . 1 1 5 . 3 . . 2 2 . 6 . 10 Rammed 5 | . 1 3 . . . . . . 1 . . . . . . . . . Targets Rammed 6 | . 1 4 . . . . . . 1 . . . . . . . . . Kicked . | . . . . . . . . . . . . . . . . . . . Crushed 1 | . . 1 . . . . . . . . . . . . . . . . Highest Temperature 338 | . 25 20 . 143 . 233 159 242 217 175 338 198 199 253 262 337 178 307 Average Temperature 85 | . 13 13 . 71 . 131 52 49 111 54 107 127 76 96 102 99 89 61 Received Heat Transfer 1481 | . 66 48 . 49 . . 144 219 162 80 27 . . 93 . 135 . 458 Effects 3 | . . . . . . . . 2 . . 1 . . . . . . . Energy Bleed 1 | . . . . . . . . . . . 1 . . . . . . . Interference 2 | . . . . . . . . 2 . . . . . . . . . . Siege Activations . | . . . . . . . . . . . . . . . . . . . Robots Corrupted 8 | . . . . 1 . . 1 . 1 . . 2 . . . . . 3 Combat Hostiles 8 | . . . . 1 . . 1 . 1 . . 2 . . . . . 3 Parts Fried 21 | . . . . 1 . . 9 . 1 . . 5 . . . . . 5 Impact Corruptions 9 | . . 1 . 1 . 1 6 . . . . . . . . . . . Robots Melted . | . . . . . . . . . . . . . . . . . . . Combat Hostiles . | . . . . . . . . . . . . . . . . . . . Parts Melted 1 | . . . . 1 . . . . . . . . . . . . . . Heat Transferred 609 | . . . . 350 . . . . . . 259 . . . . . . . Parts Sabotaged . | . . . . . . . . . . . . . . . . . . . Parts Stolen 2 | . . . . . . . . . . . . . . . . 2 . . Parts Stripped . | . . . . . . . . . . . . . . . . . . . Power Chain Reactions 7 | . . . . 5 . . . 1 . . . . . . . . . 1 Alert | -11 -10 -10 -9 -9 -9 -8 -8 -8 -7 -7 -7 -7 -6 -6 -6 -6 -6 -6 ------- Run | Yrd Mat Min Mat Min Exi Min Mat Gar Fac Low Low Dat Pro Fac Low Low Zio Dee Peak Influence 536 | . 207 106 71 110 . 15 251 536 289 . . . . 223 . . . . Initial 281 | . . 36 . 27 . . 5 133 281 . . . . 194 . . . . Average 124 | . 99 77 35 35 . 4 102 448 146 . . . . 93 . . . . Maximum Alert Level 2 | . 1 . . . . . 1 2 1 . . . . 1 . . . . Low Security (%) 82 | 100 94 100 100 100 . 100 87 11 69 . . . . 89 . . . . Level 1 9 | . 5 . . . . . 12 5 30 . . . . 10 . . . . Level 2 8 | . . . . . . . . 82 . . . . . . . . . . Level 3 . | . . . . . . . . . . . . . . . . . . . Level 4 . | . . . . . . . . . . . . . . . . . . . Level 5 . | . . . . . . . . . . . . . . . . . . . High Security . | . . . . . . . . . . . . . . . . . . . Max Security . | . . . . . . . . . . . . . . . . . . . Squads Dispatched 15 | . 3 . 2 . . . 2 . 3 . . . . 5 . . . . Investigation 6 | . 2 . . . . . 1 . 1 . . . . 2 . . . . Extermination 3 | . . . . . . . . . 2 . . . . 1 . . . . Reinforcement 6 | . 1 . 2 . . . 1 . . . . . . 2 . . . . Assault . | . . . . . . . . . . . . . . . . . . . Garrison . | . . . . . . . . . . . . . . . . . . . Intercept . | . . . . . . . . . . . . . . . . . . . Searches Triggered . | . . . . . . . . . . . . . . . . . . . Construction Impeded 1 | . . . . . . . . . . . . . . 1 . . . . Haulers Reinforced . | . . . . . . . . . . . . . . . . . . . Active Scanning Responses . | . . . . . . . . . . . . . . . . . . . Cargo Convoy Interrupts . | . . . . . . . . . . . . . . . . . . . Stealth | -11 -10 -10 -9 -9 -9 -8 -8 -8 -7 -7 -7 -7 -6 -6 -6 -6 -6 -6 --------- Run | Yrd Mat Min Mat Min Exi Min Mat Gar Fac Low Low Dat Pro Fac Low Low Zio Dee Distress Signals 3 | . 1 . . . . . 1 . . . . . 1 . . . . . Communications Jammed . | . . . . . . . . . . . . . . . . . . . Distress Signals . | . . . . . . . . . . . . . . . . . . . Times Spotted 282 | . 21 8 7 30 . . 14 15 6 15 9 4 11 12 . 10 . 120 Peak Tracking Total 65 | . 6 3 3 12 . . 5 6 3 7 4 3 4 4 . 4 . 65 Tactical Retreats 16 | . . . . 4 . . . . . 2 . . . . . 1 . 9 Traps | -11 -10 -10 -9 -9 -9 -8 -8 -8 -7 -7 -7 -7 -6 -6 -6 -6 -6 -6 ------- Run | Yrd Mat Min Mat Min Exi Min Mat Gar Fac Low Low Dat Pro Fac Low Low Zio Dee Traps Triggered 7 | . 2 . . . . . 1 1 1 . . . . 2 . . . . Indirectly . | . . . . . . . . . . . . . . . . . . . Trap Hack Attempts . | . . . . . . . . . . . . . . . . . . . Triggered . | . . . . . . . . . . . . . . . . . . . Disarmed . | . . . . . . . . . . . . . . . . . . . Reprogrammed . | . . . . . . . . . . . . . . . . . . . Reused . | . . . . . . . . . . . . . . . . . . . Traps Extracted . | . . . . . . . . . . . . . . . . . . . Installed . | . . . . . . . . . . . . . . . . . . . Triggered 2 | . . . . . . . . . . . 2 . . . . . . . Machines | -11 -10 -10 -9 -9 -9 -8 -8 -8 -7 -7 -7 -7 -6 -6 -6 -6 -6 -6 ---------- Run | Yrd Mat Min Mat Min Exi Min Mat Gar Fac Low Low Dat Pro Fac Low Low Zio Dee Machines Disabled 10 | . . . . 3 . . . 1 . 2 . 1 . . . . . 3 Max in Single Turn 2 | . . . . 2 . . . 1 . 1 . 1 . . . . . 1 Garrison Access 1 | . . . . . . . . . . . . . . 1 . . . . Machines Repaired . | . . . . . . . . . . . . . . . . . . . Machines Dismantled . | . . . . . . . . . . . . . . . . . . . Machines Sabotaged . | . . . . . . . . . . . . . . . . . . . Overloaded Fab Kills . | . . . . . . . . . . . . . . . . . . . Hacking | -11 -10 -10 -9 -9 -9 -8 -8 -8 -7 -7 -7 -7 -6 -6 -6 -6 -6 -6 --------- Run | Yrd Mat Min Mat Min Exi Min Mat Gar Fac Low Low Dat Pro Fac Low Low Zio Dee Machines Accessed 43 | . 5 . 5 1 3 . 6 1 6 1 2 4 . 8 1 . . . Terminals 20 | . 4 . 4 1 . . 4 1 4 . . . . 2 . . . . Fabricators 3 | . . . . . . . . . 1 . . . . 2 . . . . Repair Stations 1 | . . . . . . . . . . . . . . 1 . . . . Recycling Units 3 | . 1 . . . . . 1 . . . . . . 1 . . . . Scanalyzers 3 | . . . 1 . . . . . 1 . . . . 1 . . . . Garrison Access 2 | . . . . . . . 1 . . . . . . 1 . . . . Total Hacks 136 | . 12 . 21 1 14 . 13 1 14 1 6 31 . 18 4 . . . Successful 96 | . 5 . 10 1 14 . 9 1 6 1 6 31 . 8 4 . . . Failed 40 | . 7 . 11 . . . 4 . 8 . . . . 10 . . . . Catastrophic 7 | . 1 . 1 . . . 2 . 1 . . . . 2 . . . . Database Lockouts . | . . . . . . . . . . . . . . . . . . . Manual 38 | . 9 . 12 2 1 . 3 . 3 . . . . 3 . . 5 . Terminals 55 | . 10 . 19 1 . . 9 1 10 . . . . 5 . . . . Fabricators 8 | . . . . . . . . . 1 . . . . 7 . . . . Repair Stations 2 | . . . . . . . . . . . . . . 2 . . . . Recycling Units 6 | . 2 . . . . . 3 . . . . . . 1 . . . . Scanalyzers 7 | . . . 2 . . . . . 3 . . . . 2 . . . . Garrison Access 2 | . . . . . . . 1 . . . . . . 1 . . . . Terminal Hacks 76 | . 1 . 6 1 14 . 6 1 3 1 6 31 . 2 4 . . . Record 33 | . . . . . 13 . . . . . 5 11 . . 4 . . . Part Schematic 13 | . . . 1 . . . . . . . . 12 . . . . . . Robot Schematic 5 | . . . . . . . . . . . . 5 . . . . . . Robot Analysis 3 | . 1 . 2 . . . . . . . . . . . . . . . Prototype ID Bank 8 | . . . 1 . . . 2 . 1 . . 3 . 1 . . . . Open Door 2 | . . . . . . . . . . 1 1 . . . . . . . Branch Access Points 1 | . . . . . . . . . 1 . . . . . . . . . Emergency Access Points 1 | . . . . . . . . 1 . . . . . . . . . . Locate Traps 2 | . . . 1 . . . 1 . . . . . . . . . . . Maintenance Status 1 | . . . 1 . . . . . . . . . . . . . . . Surveillance Status 1 | . . . . . . . 1 . . . . . . . . . . . Hauler Manifests 1 | . . . . . . . 1 . . . . . . . . . . . Zone Layout 4 | . . . . 1 . . 1 . 1 . . . . 1 . . . . Derelict Proto ID Bank 1 | . . . . . 1 . . . . . . . . . . . . . Fabricator Hacks 4 | . . . . . . . . . 1 . . . . 3 . . . . Network Status 1 | . . . . . . . . . 1 . . . . . . . . . Load Schematic 2 | . . . . . . . . . . . . . . 2 . . . . Build 1 | . . . . . . . . . . . . . . 1 . . . . Repair Station Hacks . | . . . . . . . . . . . . . . . . . . . Recycling Unit Hacks 1 | . . . . . . . 1 . . . . . . . . . . . Retrieve Components 1 | . . . . . . . 1 . . . . . . . . . . . Scanalyzer 5 | . . . 2 . . . . . 2 . . . . 1 . . . . Insert Component 3 | . . . 1 . . . . . 1 . . . . 1 . . . . Analyze 2 | . . . 1 . . . . . 1 . . . . . . . . . Garrison Access Hacks 2 | . . . . . . . 1 . . . . . . 1 . . . . Unlock Access 1 | . . . . . . . 1 . . . . . . . . . . . Seal Access 1 | . . . . . . . . . . . . . . 1 . . . . Unauthorized Hacks 8 | . 4 . 2 . . . 1 . . . . . . 1 . . . . Terminals 5 | . 3 . 2 . . . . . . . . . . . . . . . Track 2 | . 1 . 1 . . . . . . . . . . . . . . . Assimilate 1 | . 1 . . . . . . . . . . . . . . . . . Disrupt 1 | . 1 . . . . . . . . . . . . . . . . . Operators 1 | . . . 1 . . . . . . . . . . . . . . . Fabricators 1 | . . . . . . . . . . . . . . 1 . . . . Prioritize 1 | . . . . . . . . . . . . . . 1 . . . . Repair Stations . | . . . . . . . . . . . . . . . . . . . Recycling Units 2 | . 1 . . . . . 1 . . . . . . . . . . . Tunnel 2 | . 1 . . . . . 1 . . . . . . . . . . . Scanalyzers . | . . . . . . . . . . . . . . . . . . . Garrison Access . | . . . . . . . . . . . . . . . . . . . Data Cores Recovered . | . . . . . . . . . . . . . . . . . . . Used . | . . . . . . . . . . . . . . . . . . . Hacking Detections 26 | . 4 . 4 1 . . 5 . 5 . . . . 7 . . . . Full Trace Events 4 | . 1 . . . . . . . 1 . . . . 2 . . . . Feedback Events 1 | . . . . . . . . . . . . . . 1 . . . . Corruption 1 | . . . . . . . . . . . . . . 1 . . . . Feedback Blocked . | . . . . . . . . . . . . . . . . . . . Robot Schematics Acquired 8 | . . . . . . . . . . . . 5 . . . . 3 . Robots Built . | . . . . . . . . . . . . . . . . . . . Authchips . | . . . . . . . . . . . . . . . . . . . Time . | . . . . . . . . . . . . . . . . . . . Total Robot Build Rating . | . . . . . . . . . . . . . . . . . . . Part Schematics Acquired 29 | . . . 2 . . . . . 1 . . 12 . . . . 14 . Parts Built 2 | . . . . . . . . . . . . . . 2 . . . . Authchips . | . . . . . . . . . . . . . . . . . . . Time 58 | . . . . . . . . . . . . . . 58 . . . . Total Part Build Rating 14 | . . . . . . . . . . . . . . 14 . . . . Parts Repaired . | . . . . . . . . . . . . . . . . . . . Time . | . . . . . . . . . . . . . . . . . . . Parts Recycled . | . . . . . . . . . . . . . . . . . . . Recycled Matter . | . . . . . . . . . . . . . . . . . . . Retrieved Matter . | . . . . . . . . . . . . . . . . . . . Retrieved Components 3 | . . . . . . . 3 . . . . . . . . . . . Parts Scanalyzed 3 | . . . 1 . . . . . 1 . . . . 1 . . . . Part Schematics Acquired 2 | . . . 1 . . . . . 1 . . . . . . . . . Parts Damaged . | . . . . . . . . . . . . . . . . . . . Bothacking | -11 -10 -10 -9 -9 -9 -8 -8 -8 -7 -7 -7 -7 -6 -6 -6 -6 -6 -6 ------------ Run | Yrd Mat Min Mat Min Exi Min Mat Gar Fac Low Low Dat Pro Fac Low Low Zio Dee Used RIF Installer . | . . . . . . . . . . . . . . . . . . . Robots Hacked . | . . . . . . . . . . . . . . . . . . . Non-combat . | . . . . . . . . . . . . . . . . . . . Combat . | . . . . . . . . . . . . . . . . . . . Robot Hacks Applied . | . . . . . . . . . . . . . . . . . . . Relay Couplers Released . | . . . . . . . . . . . . . . . . . . . Fabnet Peak Effective % . | . . . . . . . . . . . . . . . . . . . Robots Rewired . | . . . . . . . . . . . . . . . . . . . Allies Hacked . | . . . . . . . . . . . . . . . . . . . Hacks Repelled . | . . . . . . . . . . . . . . . . . . . Allies | -11 -10 -10 -9 -9 -9 -8 -8 -8 -7 -7 -7 -7 -6 -6 -6 -6 -6 -6 -------- Run | Yrd Mat Min Mat Min Exi Min Mat Gar Fac Low Low Dat Pro Fac Low Low Zio Dee Total Allies 7 | . . . . 2 . . . . . . . . . . 2 . 2 1 Largest Group 3 | . . . . 2 2 . . . . . . . . . 2 . 2 3 Highest-Rated Group 311 | . . . . 46 46 . . . . . . . . . 62 . 192 311 Highest-Rated Ally 119 | . . . . 31 31 . . . . . . . . . 31 . 96 119 Total Orders . | . . . . . . . . . . . . . . . . . . . Ally Attacks 90 | . . . . 4 . . . . . . . . . . . . . 86 Total Damage 3770 | . . . . 64 . . . . . . . . . . . . . 3706 Kills 24 | . . . . 2 . . . . . . . . . . . . . 22 Allies Corrupted . | . . . . . . . . . . . . . . . . . . . Allies Melted 1 | . . . . . . . . . . . . . . . . . . 1 Intel | -11 -10 -10 -9 -9 -9 -8 -8 -8 -7 -7 -7 -7 -6 -6 -6 -6 -6 -6 ------- Run | Yrd Mat Min Mat Min Exi Min Mat Gar Fac Low Low Dat Pro Fac Low Low Zio Dee Robot Analysis Total 3 | . 1 . 2 . . . . . . . . . . . . . . . Derelict Logs Recovered 14 | . . 1 . 1 . . . . . 2 2 . 2 . 1 3 2 . Drone Launches . | . . . . . . . . . . . . . . . . . . . Drone Recoveries . | . . . . . . . . . . . . . . . . . . . Exploration | -11 -10 -10 -9 -9 -9 -8 -8 -8 -7 -7 -7 -7 -6 -6 -6 -6 -6 -6 ------------- Run | Yrd Mat Min Mat Min Exi Min Mat Gar Fac Low Low Dat Pro Fac Low Low Zio Dee Turns Passed 16966 | 2 938 815 329 995 307 333 733 834 1325 1215 1344 534 691 1966 564 1198 1369 1474 Spaces Moved 10585 | 2 500 469 214 593 245 244 434 325 611 789 899 278 452 1222 451 885 1082 890 Core . | . . . . . . . . . . . . . . . . . . . Treads 1159 | . 488 469 16 1 . . . 129 56 . . . . . . . . . Legs 5335 | 2 12 . . 45 . . 396 196 146 . . . 8 1222 451 885 1082 890 Wheels 4091 | . . . 198 547 245 244 38 . 409 789 899 278 444 . . . . . Hover . | . . . . . . . . . . . . . . . . . . . Flight . | . . . . . . . . . . . . . . . . . . . Fastest Speed 115 | 120 120 160 135 125 125 125 122 122 125 125 123 123 123 120 120 120 120 115 Average Speed 136 | 120 159 160 136 132 125 125 123 207 187 139 136 123 133 128 120 120 120 124 Slowest Speed 400 | 120 160 160 160 400 125 125 125 320 320 140 140 140 190 190 120 120 120 203 Overloaded Moves . | . . . . . . . . . . . . . . . . . . . Propulsion Burnouts . | . . . . . . . . . . . . . . . . . . . Robots Hopped . | . . . . . . . . . . . . . . . . . . . Cave-ins Triggered . | . . . . . . . . . . . . . . . . . . . Exploration Rate (%) 62 | 2 78 98 24 98 67 44 41 49 12 91 97 80 71 26 54 96 86 75 Regions Visited 18 Branch Regions 12 Pre-discovered Areas 12 | . 1 . . . 1 . 1 . . 1 2 1 1 . 1 . 3 . Known Exits Taken 4 | . . . . . . . 1 . 1 . . . 1 1 . . . . Unknown Exits Taken 13 | 1 1 1 1 1 1 1 . . . 1 1 1 . . 1 1 1 . Scrap Searched 20 | . . 1 . 2 . 1 . . . 3 3 . 2 . 2 3 3 . Spaces Dug 138 | . . . 3 16 . 2 8 2 13 10 6 . 9 28 1 20 1 19 Terrain Destroyed 432 | . . . 3 25 . 13 8 24 16 70 59 . 54 33 1 77 1 48 Melee 68 | . . . 3 . . 2 8 . 13 1 6 . . 25 1 6 1 2 Projectile 37 | . . . . . . . . . 3 6 19 . 8 1 . . . . AOE 327 | . . . . 25 . 11 . 24 . 63 34 . 46 7 . 71 . 46 Terrain Rammed . | . . . . . . . . . . . . . . . . . . . Walls Destroyed . | . . . . . . . . . . . . . . . . . . . Machines Disabled . | . . . . . . . . . . . . . . . . . . . Actions | -11 -10 -10 -9 -9 -9 -8 -8 -8 -7 -7 -7 -7 -6 -6 -6 -6 -6 -6 --------- Run | Yrd Mat Min Mat Min Exi Min Mat Gar Fac Low Low Dat Pro Fac Low Low Zio Dee Total 12300 | 1 565 502 241 734 246 265 563 438 738 859 960 391 514 1538 467 987 1147 1144 Wait 645 | . 6 5 1 65 . 14 43 28 31 16 14 18 20 217 7 66 43 51 Move 10565 | 1 499 468 213 592 244 243 433 322 610 788 898 277 451 1221 450 884 1081 890 Hop . | . . . . . . . . . . . . . . . . . . . Pick Up 134 | . 10 4 12 5 1 . 10 13 12 6 3 13 . 14 1 3 5 22 Fast Attach 81 | . 3 1 1 4 . 1 10 5 7 . 1 6 6 5 . . 3 28 Attach 62 | . 1 . 3 9 . . 1 3 5 3 2 4 4 4 2 3 1 17 Detach 12 | . . . 1 . . . 1 2 . 1 . 4 . 2 . 1 . . Swap 103 | . 3 . 2 2 . 2 8 11 9 5 9 6 15 7 . 4 6 14 Drop 146 | . 3 4 3 5 1 1 18 8 21 4 2 15 2 14 2 1 6 36 Fire 337 | . 39 16 2 40 . 1 23 31 17 30 21 14 16 3 . 11 . 73 Melee 204 | . . . 3 12 . 3 16 10 25 6 10 34 . 51 5 14 2 13 Ram 1 | . . . . . . . . . 1 . . . . . . . . . Kick . | . . . . . . . . . . . . . . . . . . . Crush 5 | . 1 4 . . . . . . . . . . . . . . . . Escape Stasis 5 | . . . . . . . . 5 . . . . . . . . . . Rewire . | . . . . . . . . . . . . . . . . . . . Trap . | . . . . . . . . . . . . . . . . . . . Miscellaneous . | . . . . . . . . . . . . . . . . . . . Route ------- -11/Scrapyard -10/Materials (discovered 3 exits: *Mat / [*Min x2]) -10/Mines (discovered 3 exits: *Mat x2 / [*Sub]) -9/Materials -9/Mines (discovered 3 exits: *Mat x2 / *Exi) -9/Exiles -8/Mines -8/Materials (discovered 2 exits: *Fac / Gar) -8/Garrison (discovered 2 exits: *Fac x2) -7/Factory (discovered 3 exits: *Fac / *Low x2) -7/Lower Caves -7/Lower Caves (discovered 2 exits: *Fac / *Dat) -7/Data Miner -6/Proximity Caves -6/Factory (discovered 2 exits: *Fac / *Low) -6/Lower Caves -6/Lower Caves (discovered 2 exits: *Fac / *Zio) -6/Zion (discovered 2 exits: [*Dee] / [*Pro]) -6/Deep Caves (discovered 1 exit: [*Pro]) History --------- Turn | Location | Event 1 | -11/Scrapyard | Discovered new exit (range 1) 3 | -11/Scrapyard | Entered Materials 263 | -10/Materials | Discovered new exit (range 6) 302 | -10/Materials | Build established: Mutant 473 | -10/Materials | Discovered new exit (range 13) 861 | -10/Materials | Discovered new exit (range 9) 941 | -10/Materials | Entered Mines 975 | -10/Mines | Met a Derelict bent on vengeance 1032 | -10/Mines | Discovered new exit (range 11) 1334 | -10/Mines | Discovered new exit (range 11) 1347 | -10/Mines | Learned Materials trap positions 1574 | -10/Mines | Discovered new exit (range 9) 1756 | -10/Mines | Entered Materials 1756 | -9/Materials | Evolved 2 slots: Propulsion x1, Utility x1 1757 | -9/Materials | Loaded intel: 19 trap records 2064 | -9/Materials | Discovered new exit (range 7) 2085 | -9/Materials | Entered Mines 2086 | -9/Mines | Assembled infested the area 2133 | -9/Mines | Learned Materials stockpile data 2207 | -9/Mines | Lost 7 parts (1p3n1u2w) 2276 | -9/Mines | Discovered new exit (range 10) 2322 | -9/Mines | Core integrity fell below 50% 2421 | -9/Mines | Deemed a non-threat by the Exiles lab entrance 2421 | -9/Mines | Discovered new exit (range 5) 2687 | -9/Mines | Discovered new exit (range 7) 2744 | -9/Mines | Build established: Scavenger-Mutant 3080 | -9/Mines | Entered Exiles 3080 | -9/Exiles | Accompanied by 2 allies 3110 | -9/Exiles | Led the pair of lost Derelicts to a safe place 3110 | -9/Exiles | Met 8R-AWN 3133 | -9/Exiles | Met EX-HEX 3167 | -9/Exiles | Met EX-BIN 3182 | -9/Exiles | Aligned with FarCom system 3183 | -9/Exiles | Given EX-Vault access code 3212 | -9/Exiles | Opened EX-Vault 3220 | -9/Exiles | Found Cloak of Protection 3244 | -9/Exiles | Warned to stay clear of 0b10 Research branches 3282 | -9/Exiles | Met EX-DEC 3287 | -9/Exiles | Learned location of Zion (-6) 3377 | -9/Exiles | Discovered new exit (range 10) 3387 | -9/Exiles | Left Exiles lab with Cloak of Protection 3387 | -9/Exiles | Entered Mines 3622 | -8/Mines | Discovered new exit (range 12) 3720 | -8/Mines | Entered Materials 3720 | -8/Materials | Evolved 2 slots: Propulsion x1, Utility x1 4161 | -8/Materials | Build established: Mutant 4391 | -8/Materials | Discovered new exit (range 9) 4439 | -8/Materials | Identified exit to Garrison 4453 | -8/Materials | Entered Garrison 4545 | -8/Garrison | Triggered checkpoint 4592 | -8/Garrison | Triggered checkpoint 4653 | -8/Garrison | Destroyed 12 combat bots 4659 | -8/Garrison | Lost 3 parts (2n1w) 4757 | -8/Garrison | Discovered new exit (range 9) 4793 | -8/Garrison | Spotted B-75 Beast 4980 | -8/Garrison | Attempted to access garrison exit controls, blocked by remote lockdown 5109 | -8/Garrison | Build established: Scavenger-Mutant 5249 | -8/Garrison | Discovered new exit (range 13) 5287 | -8/Garrison | Entered Factory 5287 | -7/Factory | Evolved 2 slots: Power x1, Utility x1 5569 | -7/Factory | Discovered new exit (range 9) 5643 | -7/Factory | Build established: Mutant 5958 | -7/Factory | Discovered new exit (range 4) 6091 | -7/Factory | Identified exit to Lower Caves 6612 | -7/Factory | Entered Lower Caves 6771 | -7/Lower Caves | Attracted the attention of an 0b10 outpost 7034 | -7/Lower Caves | Learned 4 Factory zone layouts 7448 | -7/Lower Caves | Spotted B-75 Beast 7759 | -7/Lower Caves | Discovered new exit (range 13) 7827 | -7/Lower Caves | Entered another Lower Caves area 7928 | -7/Lower Caves | Discovered new exit (range 8) 8489 | -7/Lower Caves | Learned location of 1 exit from Factory 8489 | -7/Lower Caves | Learned location of 1 exit from Research 8489 | -7/Lower Caves | Learned 8 Factory zone layouts 8600 | -7/Lower Caves | Encountered a Warlord checkpoint 8899 | -7/Lower Caves | Attacked by a faux Warlord 9091 | -7/Lower Caves | Discovered new exit (range 12) 9171 | -7/Lower Caves | Entered Data Miner 9171 | -7/Data Miner | Discovered new exit (range 7) 9197 | -7/Data Miner | Met Data Miner 9218 | -7/Data Miner | Learned location of Section 7 (-2) 9218 | -7/Data Miner | Acquired the access code to Warlord's prototype stash 9238 | -7/Data Miner | Received God Mode back door access code from Data Miner 9267 | -7/Data Miner | Data Conduit disabled 9404 | -7/Data Miner | Found Prototype Device 9404 | -7/Data Miner | Identified Exp. Thermal Shield 9705 | -7/Data Miner | Entered Proximity Caves 9707 | -6/Proximity Caves | Spotter reported a threat 9834 | -6/Proximity Caves | Identified exit to Factory 9881 | -6/Proximity Caves | Attracted the attention of an 0b10 checkpoint 10365 | -6/Proximity Caves | System corruption reached 10% 10393 | -6/Proximity Caves | System corruption reached 30% 10396 | -6/Proximity Caves | Entered Factory 10396 | -6/Factory | Evolved 2 slots: Propulsion x1, Utility x1 10397 | -6/Factory | Identified exit to Factory 10398 | -6/Factory | Identified exit to Lower Caves 10668 | -6/Factory | Build established: Scavenger-Mutant 12072 | -6/Factory | Fabricated Adv. Hardlight Generator? 12362 | -6/Factory | Entered Lower Caves 12533 | -6/Lower Caves | Learned 8 Research zone layouts 12533 | -6/Lower Caves | Learned Armory security intel 12542 | -6/Lower Caves | A Commander dispatched an escort 12714 | -6/Lower Caves | Discovered new exit (range 5) 12926 | -6/Lower Caves | Entered another Lower Caves area 12926 | -6/Lower Caves | Accompanied by 2 allies 12927 | -6/Lower Caves | Commander's escort returned to base 12927 | -6/Lower Caves | Commander's escort returned to base 12927 | -6/Lower Caves | Encountered a Warlord checkpoint 13013 | -6/Lower Caves | Learned Factory security intel 13040 | -6/Lower Caves | Discovered exit to Factory (range 6) 13334 | -6/Lower Caves | Learned Factory terminal intel 13599 | -6/Lower Caves | Attracted the attention of an 0b10 checkpoint 13842 | -6/Lower Caves | Learned location of 1 exit from Factory 13864 | -6/Lower Caves | Discovered new exit (range 12) 14124 | -6/Lower Caves | Entered Zion 14184 | -6/Zion | Learned location of Extension (-4) 14191 | -6/Zion | System corruption cleaned by Quarantine Array 14227 | -6/Zion | Learned Factory trap positions 14262 | -6/Zion | Discovered new exit (range 16) 14310 | -6/Zion | Acquired unknown access codes intercepted by a Zionite 14429 | -6/Zion | Given the Hacking Drone Bay 14430 | -6/Zion | Found Prototype Device 14431 | -6/Zion | Identified Hacking Drone Bay 14458 | -6/Zion | Given A8's code to call for help 14460 | -6/Zion | Build established: Scavenger-Gladiator 14486 | -6/Zion | Learned location of Armory (-4) 14837 | -6/Zion | Build established: Scavenger-Mutant 14916 | -6/Zion | Rebuked by Imprinter 15022 | -6/Zion | Opened final containment barrier to the Deep Caves 15413 | -6/Zion | Discovered new exit (range 3) 15413 | -6/Zion | Saw the warning signs outside the Deep Caves entrance 15436 | -6/Zion | Enhanced Grunt warped into view, answering call for help 15438 | -6/Zion | Enhanced Grunt warped into view, answering call for help 15493 | -6/Zion | Entered Deep Caves 15493 | -6/Deep Caves | Accompanied by 2 allies 15495 | -6/Deep Caves | Met 5H-AD0 15567 | -6/Deep Caves | Z-Facility disabled 15674 | -6/Deep Caves | Attacked by Z-Imprinter 15695 | -6/Deep Caves | Destroyed Z-Imprinter 15736 | -6/Deep Caves | Found Prototype Protection 15736 | -6/Deep Caves | Identified Zio. Weapon Casing 15990 | -6/Deep Caves | Found Prototype Protection 15990 | -6/Deep Caves | Identified Zio. Heavy Carapace 16226 | -6/Deep Caves | Discovered new exit (range 6) 16417 | -6/Deep Caves | Spotted AG-81061 16418 | -6/Deep Caves | Exposed GOLEM chamber 16419 | -6/Deep Caves | Triggered Deep Caves wall 16434 | -6/Deep Caves | Destroyed AG-81061 16502 | -6/Deep Caves | Spotted AG-54613 16512 | -6/Deep Caves | Destroyed 32 combat bots 16554 | -6/Deep Caves | Lost 7 parts (1p6u) 16604 | -6/Deep Caves | Found Zio. Weapon Casing 16609 | -6/Deep Caves | Found Zio. Weapon Casing 16631 | -6/Deep Caves | Core integrity fell below 50% 16666 | -6/Deep Caves | Destroyed AG-54613 16687 | -6/Deep Caves | Lost 8 parts (2p4n2u) 16758 | -6/Deep Caves | Found Zio. Weapon Casing 16765 | -6/Deep Caves | Found Zio. Weapon Casing 16793 | -6/Deep Caves | Found Zio. Weapon Casing 16839 | -6/Deep Caves | Found Zio. Weapon Casing 16856 | -6/Deep Caves | Spotted AG-98874 16856 | -6/Deep Caves | Spotted AG-74349 16889 | -6/Deep Caves | Core integrity fell below 20% 16925 | -6/Deep Caves | Lost 5 parts (1p4u) 16931 | -6/Deep Caves | Destroyed 51 combat bots 16967 | -6/Deep Caves | Destroyed by AG-74349 with Assembled Focal Cannon Last Messages --------------- 16896_ Penetrated by Slug. 16899_ as-25068 destroyed. 16899_ as-77210 destroyed. 16900_ Penetrated by Slug. 16902_ Destroyed Asb. Hover System. 16905_ Penetrated by Slug. 16906_ as-42035 destroyed. 16906_ as-69289 destroyed. 16907_ as-82376 system terminally corrupted. 16908_ Penetrated by Slug. 16908_ as-22791 destroyed. 16924_ Acquired Zio. Light Carapace. 16928_ Dropped Huge Storage Unit. 16931_ Dropped Enh. Flexi-carbon Leg. 16932_ System corrupted: Matter fused (-8). 16938_ Acquired Zio. Composite Leg I. 16947_ Flexi-carbon Leg destroyed. 16949_ Zio. Weapon Casing destroyed. 16965_ Zio. Light DM Reactor destroyed. 16965_ Zio. Light Carapace destroyed. Map ----- +----------------------------------------------------+ | | | | | ???????????????????????????######!"#!####????????? | | ????????###????????????????# !![ #????????? | | ????????# ????????????????# !% ###??????? | | ????????# ????????????????# ### [ ! =# #??????? | | ???????## #??????????????## ######=!!%=# ##??#?? | | ???????# #????????????### ##### !=*# #? ## | | ???????# ##???????????# #!!=!%! ## | | ???????# ##??????????# ![! ! | | ???????# ##?????????## ! [ | | ???????# #??????????### | | ???????# ##???????????## | | ???????# ##??????????# " | | #####??# #???????#### " | | ##?# #??????## # " | | ### #??????# " | | ## ##????## # " | | #????#"###" " | | ##???##### " | | ##?????# " | | ## ##????## a | | #### ##??### " | | ##?# ## #?## % | | ### ### #?# a | | ##?# #?# @ | | ##??# #?# % | | ##???# #?## % | | " " ##???## #?#;# | | " #??### #?#### | | #??# #????# | | ##?# ##?? | | ##??## # # | | ##???### ### | | ######## ## # | | #### ## # | | #?## ### | | ######## | | | | | | ### | | ### ## ##?# ### | | #?#### #??## ### | | ?###?# #???## #### ! | | ## ## ###### #?# !* | | # #?## !![ | | #??# ! | | #### #??# "" ## | | ##??## ##??## ##" " ##?# | | #######????#######????# ### " #??## | +----------------------------------------------------+ Best States ------------- Heat Dissipation 63 Coolant Potential 80 Energy Generation 49 Energy Capacity 700 Matter Stores 300 Matter Capacity 300 Sight Range 16 Robot Scan Range 16 Terrain Scan Density 10 Cloak Strength 5 Armor Coverage 1200 Resistance: TH 30 Utility Shielding 66 Weapon Shielding 100 Weapon Cycling 15 Evasion (%) 62 Melee Accuracy 16 Recoil Reduction 2 Particle Charging 25 Offensive Hacking 10 Item Schematics ----------------- Cargo Storage Unit | -9/Materials | Hacked Lrg. Storage Unit | -9/Materials | Scanalyzed Gyrokinetic Inverter | -7/Factory | Scanalyzed Combat Drone Bay | -7/Data Miner | Free Lgt. Regenerative Plating | -7/Data Miner | Free Cld. Aerolev Unit | -7/Data Miner | Free Exp. Utility Shielding | -7/Data Miner | Free Force Rifle | -7/Data Miner | Free Field Propulsion Drive | -7/Data Miner | Free Imp. Thermal Shield | -7/Data Miner | Free Disruptor Cannon | -7/Data Miner | Free Imp. Medium Treads | -7/Data Miner | Free Point Defense System | -7/Data Miner | Free Adv. Hardlight Generator | -7/Data Miner | Free Impulse Thruster | -7/Data Miner | Free Hvy. Machine Gun | -6/Zion | Archive Neutrino Core | -6/Zion | Archive EM Disruption Field | -6/Zion | Archive Adv. System Restoration Module | -6/Zion | Archive Proton Cannon | -6/Zion | Archive Myomer Leg | -6/Zion | Archive Imp. System Restoration Module | -6/Zion | Archive Tesla Rifle | -6/Zion | Archive Imp. Heavy Armor Plating | -6/Zion | Archive Mak. Trap Scanner | -6/Zion | Archive Energy Well | -6/Zion | Archive Phasing Sabre | -6/Zion | Archive Fission Core | -6/Zion | Archive Adv. Cryofiber Web | -6/Zion | Archive Robot Schematics ------------------ R-10 Processor | -7/Data Miner | Free S-27 Virus | -7/Data Miner | Free M-28 Smith | -7/Data Miner | Free A-15 Conveyor | -7/Data Miner | Free X-67 Chaingunner | -7/Data Miner | Free L-41 Fighter | -6/Zion | Archive H-66 Slayer | -6/Zion | Archive H-88 Terminator | -6/Zion | Archive Fabricated ------------ Adv. Hardlight Generator | x2 | -6/Factory Alien Tech Used ----------------- None Achievements -------------- None Challenges ------------ None Game ------ Seed DirtySapperThruster Manual? 0 Play Time 02:43:57 Cumulative 195.0 hours Start 2024.04.24 @ 20:43:59 End 2024.04.25 @ 00:02:38 Sessions 1 Manual Loads 0 Difficulty Rogue Special Mode None Game No. 80 Rogue 78 Adventurer 2 Explorer 0 Win Type - Total 5 Types 4/0/0/1/0/0/0/0/0 Lore% 67 Gallery% 77 Achievement% 65 Wizard Run 0 Options --------- Layout 0 ASCII 0 Keyboard 0 Movement Numpad Keybinds 0 Fullscreen 2 Font 24/Smallcaps Map View 76x50 Zoom Use 0% Tactical HUD 1 Map Filters NONE Filters NONE Steam 1 RUN: 91d10ff4-6576-48ef-b4b1-b072f77fe0e1